[Event "1er Open Estival de Marseille"]
[Site "Marseille, France"]
[Date "2023.08.04"]
[Round "7.2"]
[White "Dudognon, Thibault"]
[Black "Philippe, Guillaume"]
[Result "1-0"]
[TimeControl "90+30s/move"]
[WhiteElo "2279"]
[BlackElo "2362"]

1. e4 {[%clk 01:30:52]} {[%emt 00:00:07]} d6 {[%clk 01:30:49]} {[%emt
00:00:11]} 2. d4 {[%clk 01:30:34]} {[%emt 00:00:47]} Nf6 {[%clk 01:31:12]}
{[%emt 00:00:07]} 3. Nc3 {[%clk 01:31:01]} {[%emt 00:00:04]} g6 {[%clk
01:31:34]} {[%emt 00:00:09]} 4. Be3 {[%clk 01:31:12]} {[%emt 00:00:18]} c6
{[%clk 01:31:54]} {[%emt 00:00:10]} 5. Qd2 {[%clk 01:31:27]} {[%emt 00:00:15]}
b5 {[%clk 01:32:11]} {[%emt 00:00:14]} 6. Bd3 {[%clk 01:31:51]} {[%emt
00:00:05]} Nbd7 {[%clk 01:32:11]} {[%emt 00:00:31]} 7. Nf3 {[%clk 01:32:04]}
{[%emt 00:00:17]} Qc7 {[%clk 01:31:23]} {[%emt 00:01:17]} 8. Ne2 {[%clk
01:32:04]} {[%emt 00:00:29]} Bb7 {[%clk 01:18:28]} {[%emt 00:13:26]} 9. c3
{[%clk 01:25:51]} {[%emt 00:06:43]} a6 {[%clk 01:15:27]} {[%emt 00:03:31]} 10.
h3 {[%clk 01:23:24]} {[%emt 00:02:57]} c5 {[%clk 01:14:43]} {[%emt 00:01:15]}
11. Ng3 {[%clk 01:23:09]} {[%emt 00:00:45]} h5 {[%clk 01:14:53]} {[%emt
00:00:20]} 12. Bg5 {[%clk 01:20:35]} {[%emt 00:03:03]} Bg7 {[%clk 01:09:54]}
{[%emt 00:05:30]} 13. O-O {[%clk 01:20:40]} {[%emt 00:00:24]} e5 {[%clk
01:08:44]} {[%emt 00:01:41]} 14. d5 {[%clk 01:16:57]} {[%emt 00:04:13]} c4
{[%clk 01:07:23]} {[%emt 00:01:52]} 15. Bc2 {[%clk 01:16:56]} {[%emt 00:00:30]}
O-O {[%clk 01:03:56]} {[%emt 00:03:58]} 16. Bh6 {[%clk 01:15:10]} {[%emt
00:02:16]} Nh7 {[%clk 01:03:50]} {[%emt 00:00:37]} 17. Rae1 {[%clk 01:01:22]}
{[%emt 00:14:17]} Qd8 {[%clk 01:01:37]} {[%emt 00:02:43]} 18. Bxg7 {[%clk
00:59:20]} {[%emt 00:02:33]} Kxg7 {[%clk 01:02:01]} {[%emt 00:00:06]} 19. Nh2
{[%clk 00:59:23]} {[%emt 00:00:27]} Qg5 {[%clk 00:57:57]} {[%emt 00:04:33]} 20.
Qd1 {[%clk 00:50:23]} {[%emt 00:09:31]} Nc5 {[%clk 00:49:15]} {[%emt 00:09:13]}
21. Ne2 {[%clk 00:47:04]} {[%emt 00:03:48]} Nf6 {[%clk 00:38:29]} {[%emt
00:11:16]} 22. f4 {[%clk 00:42:27]} {[%emt 00:05:07]} exf4 {[%clk 00:38:25]}
{[%emt 00:00:35]} 23. Nxf4 {[%clk 00:42:50]} {[%emt 00:00:06]} Rae8 {[%clk
00:37:57]} {[%emt 00:00:59]} 24. Qd2 {[%clk 00:41:02]} {[%emt 00:02:17]} Nfxe4
{[%clk 00:30:18]} {[%emt 00:08:09]} 25. Bxe4 {[%clk 00:37:31]} {[%emt
00:04:01]} Rxe4 {[%clk 00:30:38]} {[%emt 00:00:10]} 26. Rxe4 {[%clk 00:27:40]}
{[%emt 00:10:21]} Nxe4 {[%clk 00:31:01]} {[%emt 00:00:07]} 27. Qe3 {[%clk
00:26:56]} {[%emt 00:01:13]} Nc5 {[%clk 00:26:57]} {[%emt 00:04:34]} 28. Nf3
{[%clk 00:26:18]} {[%emt 00:01:08]} Qf5 {[%clk 00:27:23]} {[%emt 00:00:05]} 29.
Nd4 {[%clk 00:23:22]} {[%emt 00:03:26]} Qe5 {[%clk 00:27:27]} {[%emt 00:00:26]}
30. Qf3 {[%clk 00:22:36]} {[%emt 00:01:16]} Bc8 {[%clk 00:20:48]} {[%emt
00:07:10]} 31. Nc6 {[%clk 00:18:54]} {[%emt 00:04:11]} Qg5 {[%clk 00:21:04]}
{[%emt 00:00:14]} 32. Qf2 {[%clk 00:16:27]} {[%emt 00:02:57]} Bf5 {[%clk
00:19:45]} {[%emt 00:01:50]} 33. h4 {[%clk 00:16:16]} {[%emt 00:00:41]} Qg4
{[%clk 00:18:50]} {[%emt 00:01:26]} 34. Qd4+ {[%clk 00:15:54]} {[%emt
00:00:51]} f6 {[%clk 00:18:38]} {[%emt 00:00:43]} 35. Re1 {[%clk 00:13:00]}
{[%emt 00:03:23]} Nd3 {[%clk 00:10:57]} {[%emt 00:08:12]} 36. Re7+ {[%clk
00:11:31]} {[%emt 00:01:58]} Kh6 {[%clk 00:11:14]} {[%emt 00:00:13]} 37. Qa7
{[%clk 00:08:59]} {[%emt 00:03:01]} g5 {[%clk 00:09:42]} {[%emt 00:02:02]} 38.
Ne6 {[%clk 00:07:27]} {[%emt 00:02:02]} Rg8 {[%clk 00:08:19]} {[%emt 00:01:54]}
39. Rf7 {[%clk 00:00:51]} {[%emt 00:07:05]} Qxh4 {[%clk 00:05:02]} {[%emt
00:03:47]} 40. Rxf6+ {[%clk 00:01:11]} {[%emt 00:00:10]} Bg6 {[%clk 00:05:28]}
{[%emt 00:00:03]} 41. Ne7 {[%clk 00:00:56]} {[%emt 00:00:45]} Qe1+ {[%clk
00:03:41]} {[%emt 00:02:18]} 42. Rf1 {[%clk 00:01:25]} 1-0

[Event "1er Open Estival de Marseille"]
[Site "Marseille, France"]
[Date "2023.08.04"]
[Round "7.4"]
[White "Rabette, Paul"]
[Black "Vu Dinh, Adrien"]
[Result "1/2-1/2"]
[TimeControl "90+30s/move"]
[WhiteElo "1853"]
[BlackElo "2168"]

1. d4 {[%clk 01:28:05]} {[%emt 00:02:55]} Nf6 {[%clk 01:30:56]} {[%emt
00:00:04]} 2. c4 {[%clk 01:28:31]} {[%emt 00:00:04]} g6 {[%clk 01:31:22]}
{[%emt 00:00:04]} 3. Nc3 {[%clk 01:28:58]} {[%emt 00:00:03]} d5 {[%clk
01:31:49]} {[%emt 00:00:03]} 4. cxd5 {[%clk 01:29:24]} {[%emt 00:00:04]} Nxd5
{[%clk 01:32:14]} {[%emt 00:00:05]} 5. e4 {[%clk 01:29:50]} {[%emt 00:00:04]}
Nxc3 {[%clk 01:32:41]} {[%emt 00:00:04]} 6. bxc3 {[%clk 01:30:16]} {[%emt
00:00:04]} Bg7 {[%clk 01:33:10]} 7. Be3 {[%clk 01:30:25]} {[%emt 00:00:21]} c5
{[%clk 01:33:37]} {[%emt 00:00:03]} 8. Qd2 {[%clk 01:27:02]} {[%emt 00:03:53]}
O-O {[%clk 01:32:37]} {[%emt 00:01:29]} 9. Nf3 {[%clk 01:27:13]} {[%emt
00:00:19]} Bg4 {[%clk 01:32:15]} {[%emt 00:00:53]} 10. Be2 {[%clk 01:27:26]}
{[%emt 00:00:17]} Qa5 {[%clk 01:32:40]} {[%emt 00:00:05]} 11. Rc1 {[%clk
01:27:22]} {[%emt 00:00:34]} Nd7 {[%clk 01:22:09]} {[%emt 00:11:01]} 12. h3
{[%clk 01:19:29]} {[%emt 00:08:23]} Bxf3 {[%clk 01:20:47]} {[%emt 00:01:52]} 13.
Bxf3 {[%clk 01:19:30]} {[%emt 00:00:28]} Rfd8 {[%clk 01:19:16]} {[%emt
00:02:01]} 14. d5 {[%clk 01:18:50]} {[%emt 00:01:11]} c4 {[%clk 01:17:18]}
{[%emt 00:02:27]} 15. Be2 {[%clk 01:12:16]} {[%emt 00:07:04]} Nc5 {[%clk
01:16:18]} {[%emt 00:01:31]} 16. f3 {[%clk 01:08:35]} {[%emt 00:04:11]} Na4
{[%clk 00:58:32]} {[%emt 00:18:15]} 17. Bd4 {[%clk 01:07:27]} {[%emt 00:01:38]}
Bxd4 {[%clk 00:59:01]} {[%emt 00:00:01]} 18. Qxd4 {[%clk 01:07:42]} {[%emt
00:00:14]} b5 {[%clk 00:58:58]} {[%emt 00:00:34]} 19. O-O {[%clk 01:06:14]}
{[%emt 00:01:57]} e6 {[%clk 00:48:54]} {[%emt 00:10:34]} 20. d6 {[%clk
00:59:03]} {[%emt 00:07:42]} e5 {[%clk 00:49:07]} {[%emt 00:00:17]} 21. Qxe5
{[%clk 00:58:37]} {[%emt 00:00:56]} Qb6+ {[%clk 00:49:36]} 22. Kh1 {[%clk
00:58:22]} {[%emt 00:00:44]} Rxd6 {[%clk 00:49:50]} {[%emt 00:00:17]} 23. Rb1
{[%clk 00:51:14]} {[%emt 00:07:39]} Re6 {[%clk 00:44:45]} {[%emt 00:05:35]} 24.
Qxb5 {[%clk 00:50:22]} {[%emt 00:01:22]} Qxb5 {[%clk 00:42:11]} {[%emt
00:03:05]} 25. Rxb5 {[%clk 00:50:50]} {[%emt 00:00:02]} Nxc3 {[%clk 00:42:28]}
{[%emt 00:00:13]} 26. Rb2 {[%clk 00:51:12]} {[%emt 00:00:08]} Rc8 {[%clk
00:39:14]} {[%emt 00:03:44]} 27. Rc1 {[%clk 00:50:39]} {[%emt 00:01:03]} Rb6
{[%clk 00:37:59]} {[%emt 00:01:46]} 28. Rbc2 {[%clk 00:49:12]} {[%emt
00:01:56]} Nxe2 {[%clk 00:37:56]} {[%emt 00:00:34]} 29. Rxe2 {[%clk 00:49:40]}
{[%emt 00:00:01]} Kf8 {[%clk 00:34:42]} {[%emt 00:03:43]} 30. Rec2 {[%clk
00:49:40]} {[%emt 00:00:30]} Rb4 {[%clk 00:29:32]} {[%emt 00:05:40]} 31. Kg1
{[%clk 00:48:38]} {[%emt 00:01:33]} Ke7 {[%clk 00:29:58]} {[%emt 00:00:05]} 32.
Rd1 {[%clk 00:46:09]} {[%emt 00:02:59]} Rc6 {[%clk 00:09:02]} {[%emt 00:21:27]}
33. Kf2 {[%clk 00:43:50]} {[%emt 00:02:48]} Rd6 {[%clk 00:09:21]} {[%emt
00:00:11]} 34. Rdc1 {[%clk 00:43:32]} {[%emt 00:00:48]} Rd4 {[%clk 00:09:40]}
{[%emt 00:00:10]} 35. Ke3 {[%clk 00:39:39]} {[%emt 00:04:23]} Rd3+ {[%clk
00:10:03]} {[%emt 00:00:08]} 36. Kf4 {[%clk 00:38:18]} {[%emt 00:01:49]} Ra3
{[%clk 00:08:42]} {[%emt 00:01:53]} 37. Rxc4 {[%clk 00:31:06]} {[%emt
00:07:43]} Rxc4 {[%clk 00:09:11]} {[%emt 00:00:01]} 38. Rxc4 {[%clk 00:31:28]}
{[%emt 00:00:07]} Rxa2 {[%clk 00:09:40]} {[%emt 00:00:02]} 39. Rc7+ {[%clk
00:31:44]} {[%emt 00:00:14]} Ke6 {[%clk 00:09:26]} {[%emt 00:00:44]} 40. g3
{[%clk 00:29:57]} {[%emt 00:02:17]} h6 {[%clk 00:09:03]} {[%emt 00:00:53]} 41.
h4 {[%emt 00:00:21]} Ra5 {[%clk 00:06:59]} {[%emt 00:02:34]} 42. Kg4 {[%clk
00:27:04]} {[%emt 00:03:33]} Kf6 {[%clk 00:07:09]} {[%emt 00:00:20]} 43. Rc6+
{[%clk 00:25:40]} {[%emt 00:01:54]} 1/2-1/2

[Event "1er Open Estival de Marseille"]
[Site "Marseille, France"]
[Date "2023.08.04"]
[Round "7.1"]
[White "Espinosa Aranda, Angel"]
[Black "Zienkiewicz, Jan"]
[Result "1-0"]
[TimeControl "90+30s/move"]
[WhiteElo "2443"]
[BlackElo "2189"]

1. e4 {[%clk 01:30:55]} {[%emt 00:00:03]} c5 {[%clk 01:27:38]} {[%emt
00:03:23]} 2. Nf3 {[%clk 01:30:58]} {[%emt 00:00:27]} Nc6 {[%clk 01:27:57]}
{[%emt 00:00:11]} 3. Bb5 {[%clk 01:30:51]} {[%emt 00:00:37]} e6 {[%clk
01:28:10]} {[%emt 00:00:18]} 4. O-O {[%clk 01:31:00]} {[%emt 00:00:21]} Nge7
{[%clk 01:28:32]} {[%emt 00:00:08]} 5. Re1 {[%clk 01:31:21]} {[%emt 00:00:09]}
h6 {[%clk 01:28:54]} {[%emt 00:00:08]} 6. Bxc6 {[%clk 01:27:37]} {[%emt
00:04:14]} Nxc6 {[%clk 01:29:10]} {[%emt 00:00:14]} 7. d4 {[%clk 01:28:03]}
{[%emt 00:00:04]} cxd4 {[%clk 01:28:34]} {[%emt 00:01:06]} 8. Nxd4 {[%clk
01:28:28]} {[%emt 00:00:05]} e5 {[%clk 01:18:29]} {[%emt 00:10:35]} 9. Nb5
{[%clk 01:14:09]} {[%emt 00:14:48]} d6 {[%clk 01:17:40]} {[%emt 00:01:19]} 10.
c4 {[%clk 01:12:09]} {[%emt 00:02:30]} Be7 {[%clk 01:15:04]} {[%emt 00:03:05]}
11. Be3 {[%clk 01:11:27]} {[%emt 00:01:11]} Be6 {[%clk 01:14:43]} {[%emt
00:00:52]} 12. N1a3 {[%clk 01:07:30]} {[%emt 00:04:28]} O-O {[%clk 01:07:57]}
{[%emt 00:07:16]} 13. Qd2 {[%clk 01:07:51]} {[%emt 00:00:08]} a6 {[%clk
01:06:50]} {[%emt 00:01:37]} 14. Nc3 {[%clk 01:08:14]} {[%emt 00:00:07]} Bg5
{[%clk 00:58:55]} {[%emt 00:08:25]} 15. Rad1 {[%clk 01:03:08]} {[%emt
00:05:35]} Bxe3 {[%clk 00:54:38]} {[%emt 00:04:49]} 16. Rxe3 {[%clk 01:03:08]}
{[%emt 00:00:30]} Nd4 {[%clk 00:53:26]} {[%emt 00:01:42]} 17. Ne2 {[%clk
00:56:04]} {[%emt 00:07:33]} Nxe2+ {[%clk 00:50:32]} {[%emt 00:03:24]} 18. Qxe2
{[%clk 00:54:54]} {[%emt 00:01:40]} Qc7 {[%clk 00:39:21]} {[%emt 00:11:42]} 19.
h3 {[%emt 00:24:54]} Rac8 {[%clk 00:31:23]} {[%emt 00:00:22]} 20. Qd2 {[%clk
00:30:04]} {[%emt 00:02:52]} Rfd8 21. Rd3 {[%clk 00:29:23]} {[%emt 00:11:35]}
Qb6 22. b3 {[%emt 00:02:45]} Rc6 {[%clk 00:26:01]} {[%emt 00:00:21]} 23. Nc2
{[%clk 00:29:27]} {[%emt 00:00:26]} Kh7 {[%clk 00:14:07]} {[%emt 00:12:24]} 24.
Nb4 {[%clk 00:26:06]} {[%emt 00:03:52]} Rc5 {[%clk 00:14:28]} {[%emt 00:00:09]}
25. Nd5 {[%clk 00:24:00]} {[%emt 00:02:35]} Qa7 {[%clk 00:12:36]} {[%emt
00:02:23]} 26. Ne3 {[%clk 00:22:31]} {[%emt 00:01:59]} Rc6 {[%clk 00:12:05]}
{[%emt 00:01:01]} 27. Qb4 {[%clk 00:22:37]} {[%emt 00:00:23]} Qb8 {[%clk
00:11:01]} {[%emt 00:01:33]} 28. a4 {[%emt 00:00:34]} Rd7 {[%clk 00:05:59]}
{[%emt 00:05:25]} 29. Nd5 {[%clk 00:22:38]} {[%emt 00:00:32]} Qd8 {[%clk
00:05:29]} {[%emt 00:01:00]} 30. Qd2 {[%clk 00:22:26]} {[%emt 00:00:42]} Rc5
{[%clk 00:05:08]} {[%emt 00:00:50]} 31. Kh2 {[%clk 00:19:52]} {[%emt 00:03:04]}
Bxd5 {[%clk 00:02:33]} {[%emt 00:03:05]} 32. Rxd5 {[%clk 00:20:17]} {[%emt
00:00:06]} Qb6 {[%clk 00:02:46]} {[%emt 00:00:17]} 33. Rxd6 {[%clk 00:14:54]}
{[%emt 00:05:53]} Rxd6 {[%clk 00:03:01]} {[%emt 00:00:16]} 34. Qxd6 {[%clk
00:15:18]} {[%emt 00:00:06]} Qxb3 {[%emt 00:00:44]} 35. Rd5 {[%clk 00:06:22]}
{[%emt 00:08:56]} Rxd5 {[%clk 00:03:32]} {[%emt 00:00:14]} 36. cxd5 {[%clk
00:06:47]} {[%emt 00:00:05]} Qxa4 {[%clk 00:03:31]} {[%emt 00:00:31]} 37. Qxe5
{[%emt 00:00:41]} Qd7 {[%clk 00:03:24]} {[%emt 00:00:04]} 38. d6 {[%emt
00:00:13]} Kg6 {[%clk 00:00:40]} {[%emt 00:03:06]} 39. Qe7 {[%clk 00:07:47]}
{[%emt 00:00:16]} Qc6 {[%clk 00:00:42]} {[%emt 00:00:28]} 40. d7 {[%clk
00:08:04]} {[%emt 00:00:12]} Qc7+ {[%clk 00:01:05]} {[%emt 00:00:08]} 41. g3
{[%clk 00:08:17]} {[%emt 00:00:17]} 1-0

[Event "1er Open Estival de Marseille"]
[Site "Marseille, France"]
[Date "2023.08.04"]
[Round "7.3"]
[White "Degraeve, Jean-Marc"]
[Black "Deladerriere, Calypso"]
[Result "1-0"]
[TimeControl "90+30s/move"]
[WhiteElo "2466"]
[BlackElo "1910"]

1. e4 {[%clk 01:24:30]} {[%emt 00:06:27]} c5 {[%clk 01:30:51]} {[%emt
00:00:10]} 2. Nf3 {[%clk 01:24:45]} {[%emt 00:00:16]} e6 {[%clk 01:31:08]}
{[%emt 00:00:12]} 3. c3 {[%clk 01:25:10]} {[%emt 00:00:06]} d5 {[%clk
01:30:12]} {[%emt 00:01:26]} 4. e5 {[%clk 01:25:34]} {[%emt 00:00:06]} Nc6
{[%clk 01:28:32]} {[%emt 00:02:10]} 5. d4 {[%clk 01:25:57]} {[%emt 00:00:07]}
cxd4 {[%clk 01:27:40]} {[%emt 00:01:22]} 6. cxd4 {[%clk 01:26:24]} {[%emt
00:00:03]} Nh6 {[%clk 01:22:21]} {[%emt 00:05:49]} 7. Bxh6 {[%clk 01:23:47]}
{[%emt 00:03:08]} gxh6 {[%clk 01:22:40]} {[%emt 00:00:11]} 8. Be2 {[%clk
01:23:41]} {[%emt 00:00:35]} Bd7 {[%clk 01:11:41]} {[%emt 00:11:29]} 9. Nc3
{[%clk 01:24:03]} {[%emt 00:00:08]} Qb6 {[%clk 01:11:01]} {[%emt 00:01:10]} 10.
Qd2 {[%clk 01:24:16]} {[%emt 00:00:18]} Rc8 {[%clk 01:07:57]} {[%emt 00:03:34]}
11. O-O {[%clk 01:23:59]} {[%emt 00:00:46]} Na5 {[%clk 01:07:21]} {[%emt
00:01:06]} 12. Rac1 {[%clk 01:18:33]} {[%emt 00:05:56]} Nc4 {[%clk 01:06:49]}
{[%emt 00:01:01]} 13. Bxc4 {[%clk 01:18:56]} {[%emt 00:00:08]} Rxc4 {[%clk
01:06:20]} {[%emt 00:00:59]} 14. Ne2 {[%clk 01:18:31]} {[%emt 00:00:54]} Bc6
{[%clk 00:59:28]} {[%emt 00:07:22]} 15. Ng3 {[%clk 01:17:21]} {[%emt 00:01:40]}
Qb4 {[%clk 00:51:24]} {[%emt 00:08:34]} 16. Rc3 {[%clk 01:17:45]} {[%emt
00:00:07]} Qa5 {[%clk 00:50:39]} {[%emt 00:01:15]} 17. Rxc4 {[%clk 01:16:26]}
{[%emt 00:01:49]} Qxd2 {[%clk 00:50:03]} {[%emt 00:01:06]} 18. Nxd2 {[%clk
01:16:41]} {[%emt 00:00:15]} dxc4 {[%clk 00:49:47]} {[%emt 00:00:46]} 19. Nxc4
{[%clk 01:17:09]} {[%emt 00:00:02]} Rg8 {[%clk 00:47:57]} {[%emt 00:02:20]} 20.
f3 {[%clk 01:16:53]} {[%emt 00:00:45]} Be7 {[%clk 00:35:57]} {[%emt 00:12:29]}
21. Ne4 {[%clk 01:16:04]} {[%emt 00:01:19]} Kf8 {[%clk 00:33:27]} {[%emt
00:03:01]} 22. Kf2 {[%clk 01:14:42]} {[%emt 00:01:51]} Kg7 {[%clk 00:32:13]}
{[%emt 00:01:45]} 23. Ke3 {[%clk 01:13:44]} {[%emt 00:01:27]} Rc8 {[%clk
00:25:41]} {[%emt 00:07:03]} 24. Ncd6 {[%clk 01:13:48]} {[%emt 00:00:26]} Rd8
{[%clk 00:25:48]} {[%emt 00:00:23]} 25. Rc1 {[%clk 01:13:55]} {[%emt 00:00:23]}
Kg8 {[%clk 00:25:12]} {[%emt 00:01:05]} 26. Nc4 {[%clk 01:11:05]} {[%emt
00:03:21]} Bd5 {[%clk 00:18:08]} {[%emt 00:07:34]} 27. Ncd2 {[%clk 01:06:49]}
{[%emt 00:04:45]} Bc6 {[%clk 00:17:08]} {[%emt 00:01:31]} 28. Nb3 {[%clk
01:06:20]} {[%emt 00:00:58]} Rd7 {[%clk 00:05:09]} {[%emt 00:12:30]} 29. Na5
{[%clk 01:06:03]} {[%emt 00:00:47]} Bxe4 {[%clk 00:05:15]} {[%emt 00:00:25]} 30.
Kxe4 {[%clk 01:05:57]} {[%emt 00:00:35]} f5+ {[%clk 00:05:09]} {[%emt
00:00:35]} 31. exf6 {[%clk 01:05:32]} {[%emt 00:00:55]} Bxf6 {[%clk 00:05:27]}
{[%emt 00:00:12]} 32. Nb3 {[%clk 01:05:54]} {[%emt 00:00:08]} Kf7 {[%clk
00:05:00]} {[%emt 00:00:58]} 33. g4 {[%clk 01:04:58]} {[%emt 00:01:25]} b6
{[%clk 00:04:40]} {[%emt 00:00:50]} 34. a4 {[%clk 01:04:43]} {[%emt 00:00:45]}
a5 {[%clk 00:04:12]} {[%emt 00:00:59]} 35. f4 {[%clk 01:02:45]} {[%emt
00:02:28]} b5 {[%clk 00:03:43]} {[%emt 00:00:59]} 36. axb5 {[%clk 00:56:42]}
{[%emt 00:06:33]} a4 {[%clk 00:04:06]} {[%emt 00:00:08]} 37. b6 {[%clk
00:57:00]} {[%emt 00:00:11]} Bd8 {[%clk 00:01:02]} {[%emt 00:03:33]} 38. Nc5
{[%clk 00:57:16]} {[%emt 00:00:14]} Rd6 {[%clk 00:01:21]} {[%emt 00:00:11]} 39.
Nb7 {[%clk 00:56:36]} {[%emt 00:01:09]} 1-0

[ePGN "0.1;DGT LiveChess/2.2.5"]

[Event "1er Open Estival de Marseille"]
[Site "Marseille, France"]
[Date "????.??.??"]
[Round "8.2"]
[White "Dudognon, Thibault"]
[Black "Charvein, Gabriel"]
[Result "1-0"]
[TimeControl "90+30s/move"]
[WhiteElo "2279"]
[BlackElo "2038"]

1. e4 {[%clk 01:30:56]} {[%emt 00:00:02]} c5 {[%clk 01:10:02]} {[%emt
00:20:59]} 2. Nf3 {[%clk 01:31:07]} {[%emt 00:00:19]} d6 {[%clk 01:10:25]}
{[%emt 00:00:07]} 3. d4 {[%clk 01:31:25]} {[%emt 00:00:13]} cxd4 {[%clk
01:10:50]} {[%emt 00:00:05]} 4. Nxd4 {[%clk 01:31:51]} {[%emt 00:00:03]} Nf6
{[%clk 01:11:13]} {[%emt 00:00:07]} 5. Nc3 {[%clk 01:32:16]} {[%emt 00:00:04]}
g6 {[%clk 01:11:40]} {[%emt 00:00:04]} 6. Be3 {[%clk 01:32:23]} {[%emt
00:00:23]} Nc6 {[%clk 01:11:56]} {[%emt 00:00:14]} 7. f3 {[%clk 01:32:00]}
{[%emt 00:00:52]} h5 {[%clk 01:12:20]} {[%emt 00:00:07]} 8. Qd2 {[%clk
01:28:57]} {[%emt 00:03:32]} Nxd4 {[%clk 01:12:42]} {[%emt 00:00:09]} 9. Bxd4
{[%clk 01:27:36]} {[%emt 00:01:50]} Bh6 {[%clk 01:13:03]} {[%emt 00:00:09]} 10.
Be3 {[%clk 01:27:56]} {[%emt 00:00:11]} Bxe3 {[%clk 00:59:08]} {[%emt
00:14:25]} 11. Qxe3 {[%clk 01:25:30]} {[%emt 00:02:55]} Be6 {[%clk 00:59:32]}
{[%emt 00:00:07]} 12. Bb5+ {[%clk 01:22:57]} {[%emt 00:03:03]} Kf8 {[%clk
01:00:01]} 13. O-O {[%clk 01:19:55]} {[%emt 00:03:32]} Kg7 {[%clk 00:59:11]}
{[%emt 00:01:21]} 14. f4 {[%clk 01:12:17]} {[%emt 00:08:08]} Rc8 {[%clk
00:49:44]} {[%emt 00:09:58]} 15. Qxa7 {[%clk 01:01:02]} {[%emt 00:11:44]} Rxc3
{[%clk 00:39:04]} {[%emt 00:11:10]} 16. bxc3 {[%clk 01:01:20]} {[%emt
00:00:12]} Nxe4 {[%clk 00:39:25]} {[%emt 00:00:08]} 17. Qd4+ {[%clk 01:00:33]}
{[%emt 00:01:16]} Nf6 {[%clk 00:39:42]} {[%emt 00:00:14]} 18. Bd3 {[%clk
00:57:38]} {[%emt 00:03:23]} Qa5 {[%clk 00:32:58]} {[%emt 00:07:15]} 19. Rab1
{[%clk 00:55:17]} {[%emt 00:02:52]} Qc7 {[%clk 00:25:34]} {[%emt 00:07:55]} 20.
f5 {[%clk 00:47:17]} {[%emt 00:08:29]} gxf5 {[%clk 00:25:44]} {[%emt 00:00:21]}
21. Bxf5 {[%clk 00:47:09]} {[%emt 00:00:38]} Bd5 {[%clk 00:26:09]} {[%emt
00:00:05]} 22. Bh3 {[%clk 00:40:51]} {[%emt 00:06:47]} e5 {[%clk 00:20:24]}
{[%emt 00:06:15]} 23. Qe3 {[%clk 00:39:01]} {[%emt 00:02:19]} Rh6 {[%clk
00:20:05]} {[%emt 00:00:50]} 24. Bf5 {[%clk 00:38:28]} {[%emt 00:01:02]} Qc5
{[%clk 00:20:20]} {[%emt 00:00:15]} 25. Qxc5 {[%clk 00:38:28]} {[%emt
00:00:30]} dxc5 {[%clk 00:20:49]} {[%emt 00:00:02]} 26. Rfe1 {[%clk 00:37:46]}
{[%emt 00:01:11]} 1-0

[Event "1er Open Estival de Marseille"]
[Site "Marseille, France"]
[Date "????.??.??"]
[Round "8.5"]
[White "Vu Dinh, Adrien"]
[Black "Bassal, Samuel"]
[Result "1-0"]
[TimeControl "90+30s/move"]
[WhiteElo "2168"]
[BlackElo "1974"]

1. e4 {[%emt 21:03:33]} e6 {[%emt 00:00:43]} 2. d4 {[%emt 00:00:04]} d5 {[%emt
00:00:03]} 3. Nd2 {[%emt 00:00:02]} dxe4 {[%emt 00:01:30]} 4. Nxe4 {[%emt
00:00:06]} Nf6 {[%emt 00:00:16]} 5. Nxf6+ {[%emt 00:00:17]} Qxf6 {[%emt
00:00:10]} 6. Nf3 {[%emt 00:00:06]} h6 {[%emt 00:01:33]} 7. g3 {[%emt
00:03:15]} b6 {[%emt 00:02:07]} 8. Bg2 {[%emt 00:00:12]} Bb7 {[%emt 00:00:12]}
9. O-O {[%emt 00:00:52]} Bd6 {[%emt 00:01:08]} 10. Re1 {[%emt 00:01:49]} O-O
{[%emt 00:00:24]} 11. b3 {[%emt 00:08:25]} c5 {[%emt 00:06:27]} 12. Bb2 {[%emt
00:07:25]} Rd8 {[%emt 00:03:32]} 13. dxc5 {[%emt 00:03:30]} Qxb2 {[%emt
00:01:10]} 14. cxd6 {[%emt 00:00:20]} Qa3 {[%emt 00:01:14]} 15. Ne5 {[%emt
00:03:59]} Bxg2 {[%emt 00:02:07]} 16. Nc4 {[%emt 00:04:40]} Qc5 {[%emt
00:07:46]} 17. Kxg2 {[%emt 00:00:17]} b5 {[%emt 00:03:15]} 18. Ne5 {[%emt
00:07:57]} Nc6 {[%emt 00:05:50]} 19. Qh5 {[%emt 00:25:34]} g6 {[%emt 00:10:29]}
20. Qe2 {[%emt 00:02:23]} Nxe5 {[%emt 00:05:51]} 21. Qxe5 {[%emt 00:00:06]}
Qc6+ {[%emt 00:00:17]} 22. Kg1 {[%emt 00:00:54]} Rxd6 {[%emt 00:00:44]} 23.
Rac1 {[%emt 00:02:48]} Rad8 {[%emt 00:13:25]} 24. c4 {[%emt 00:02:00]} bxc4
{[%emt 00:01:32]} 25. Rxc4 {[%emt 00:00:08]} Qd5 {[%emt 00:01:16]} 26. Ra4
{[%emt 00:07:32]} R8d7 {[%emt 00:06:12]} 27. h4 {[%emt 00:10:33]} h5 {[%emt
00:05:59]} 28. Qf6 {[%emt 00:01:26]} Qf5 {[%emt 00:00:28]} 29. Qxf5 {[%emt
00:00:18]} gxf5 {[%emt 00:00:40]} 30. Re5 {[%emt 00:01:02]} Rb7 {[%emt
00:00:42]} 31. Rea5 {[%emt 00:00:12]} Rdd7 {[%emt 00:00:17]} 32. Rc5 {[%emt
00:02:08]} Rdc7 {[%emt 00:00:35]} 33. Rac4 {[%emt 00:01:13]} Rxc5 {[%emt
00:00:28]} 34. Rxc5 {[%emt 00:00:01]} Rb6 {[%emt 00:01:33]} 35. Ra5 {[%emt
00:00:34]} Rb7 {[%emt 00:00:35]} 36. Kf1 {[%emt 00:00:09]} Kg7 {[%emt
00:00:57]} 37. Ke2 {[%emt 00:00:20]} Kf6 {[%emt 00:00:15]} 38. Kd3 {[%emt
00:00:56]} Ke7 {[%emt 00:03:46]} 39. Ra6 {[%emt 00:00:53]} Kd7 {[%emt
00:01:27]} 40. Kd4 {[%emt 00:01:10]} f6 {[%emt 00:00:19]} 41. Kc5 {[%emt
00:01:20]} Rc7+ {[%emt 00:00:13]} 42. Kb5 {[%emt 00:00:19]} Rb7+ {[%emt
00:00:05]} 43. Ka4 {[%emt 00:00:06]} Rc7 {[%emt 00:01:19]} 44. b4 {[%emt
00:00:32]} Rb7 {[%emt 00:04:39]} 45. a3 {[%emt 00:00:06]} Rc7 {[%emt 00:00:41]}
46. b5 {[%emt 00:00:43]} Rb7 {[%emt 00:03:33]} 47. Rc6 {[%emt 00:00:33]} Rb6
{[%emt 00:02:43]} 48. Rxb6 {[%emt 00:01:11]} axb6 {[%emt 00:00:05]} 49. Kb4
{[%emt 00:00:04]} e5 {[%emt 00:00:15]} 50. a4 {[%emt 00:00:06]} f4 {[%emt
00:00:12]} 51. gxf4 {[%emt 00:00:15]} exf4 {[%emt 00:00:06]} 52. f3 {[%emt
00:00:31]} Kd6 {[%emt 00:00:41]} 53. a5 {[%emt 00:00:14]} bxa5+ {[%emt
00:00:05]} 54. Kxa5 {[%emt 00:00:12]} Kc7 {[%emt 00:00:06]} 55. Ka6 {[%emt
00:00:15]} Kb8 {[%emt 00:00:07]} 56. Kb6 {[%emt 00:00:08]} f5 {[%emt 00:00:09]}
57. Ka6 {[%emt 00:00:13]} Ka8 {[%emt 00:00:05]} 58. b6 {[%emt 00:00:11]} Kb8
{[%emt 00:00:09]} 59. b7 {[%emt 00:00:37]} 1-0